[Event "4NCL 2022-2023"]
[Site "Daventry"]
[Date "2023.02.11"]
[Round "5.19"]
[White "Moreby, James"]
[Black "Redmond, John P."]
[Result "1-0"]
[ECO "C07"]
[WhiteElo "2353"]
[BlackElo "2196"]
[Annotator "TA"]
[PlyCount "77"]
[EventDate "2022.10.20"]
[EventType "team-tourn"]
[EventCountry "ENG"]
[SourceTitle "playchess.com"]
[Source "ChessBase"]
[SourceQuality "1"]
[TimeControl "40/6000+30:2400+30"]

{[%evp 25,77,14,22,31,60,37,54,34,96,93,104,101,129,107,141,123,121,111,114,113,125,123,152,137,143,147,169,158,297,302,302,315,326,304,320,208,237,198,227,235,300,303,493,454,550,545,533,530,531,531,506,491,29983,29984]} 1. e4 {[%emt 0:01:39]} e6 {[%emt 0:00:17]} 2. d4 {[%emt 0:00:04]} d5 {[%emt 0:00:08]} 3. Nd2 {[%emt 0:00:10]} c5 {[%emt 0:03:43]} 4. exd5 {[%emt 0:01:16]} Qxd5 {[%emt 0:00:10]} 5. Ngf3 {[%emt 0:00:09]} cxd4 {[%emt 0:00:15]} 6. Bc4 {[%emt 0:00:06]} Qd6 {[%emt 0:02:29]} 7. O-O {[%emt 0:01:24]} Nf6 {[%emt 0:00:14]} 8. Nb3 {[%emt 0:00:15]} Nc6 {[%emt 0:00:14]} 9. Nbxd4 {[%emt 0:00:16]} Nxd4 {[%emt 0:00:11]} 10. Nxd4 {[%emt 0:00:07]} Be7 {[%emt 0:00:48]} 11. c3 {[%emt 0:00:50]} O-O {[%emt 0:02:26]} 12. Qf3 {[%emt 0:05:37]} Qc7 {[%emt 0:04:07]} 13. Bb3 {[%emt 0:00:46]} Bd7 {[%emt 0:13:24]} 14. Bf4 {[%emt 0:12:47] C07: French Tarrasch: 3...c5, 4 Ngf3 and 4 exd5 Qxd5.} Bd6 {[%emt 0:25:52]} 15. Bxd6 {[%emt 0:02:49]} Qxd6 {[%emt 0:01:25]} 16. Qxb7 {[%emt 0:06:55] White is slightly better.} e5 {[%emt 0:15:29]} (16... a5 $14) 17. Nc2 {[%emt 0:04:42] White has more active pieces. The black rooks are badly placed.} Rfb8 {[%emt 0:12:38]} 18. Qf3 {[%emt 0:02:22] [#]} a5 $146 {[%emt 0:01:58]} ({Predecessor:} 18... Bc6 19. Rad1 Qc7 20. Qe2 a5 21. Ne3 Qb7 22. Rd6 Rc8 23. Rxf6 gxf6 24. Qg4+ Kh8 25. Qh4 Be4 26. Bd5 Bxd5 27. Qxf6+ Kg8 28. Nf5 Kf8 29. Qh8# {1-0 Kung,T (2150)-Tsay,V (2221) Dallas Fall op 2017 (9)}) 19. Rfd1 {[%emt 0:03:32]} Qc7 {[%emt 0:00:50] Threatens to win with ...Bg4.} 20. Ne3 {[%emt 0:01:06] Repels Bg4. aiming for Nd5.} Bc6 {[%emt 0:07:24]} 21. Nd5 {[%emt 0:10:54]} Bxd5 {[%emt 0:00:33]} 22. Bxd5 {[%emt 0:00:07]} Ra6 {[%emt 0:04:40]} 23. b3 {[%emt 0:00:37]} Rd6 {[%emt 0:03:03] [#]} 24. Bc4 $1 {[%emt 0:01:13]} Rbd8 {[%emt 0:05:20]} 25. Rxd6 {[%emt 0:01:09]} Qxd6 {[%emt 0:00:11] [#]} 26. Qb7 $1 {[%emt 0:00:27]} Rd7 {[%emt 0:04:57]} (26... Qd7 $16 {was worth a try.} 27. Qxd7 Rxd7) 27. Qa8+ $18 {[%emt 0:00:42]} Rd8 {[%emt 0:00:05]} 28. Qxa5 {[%emt 0:00:23]} Ne4 {[%emt 0:01:07]} 29. Qa7 {[%emt 0:03:19]} Nxc3 {[%emt 0:00:30][%cal Od6d1]} 30. Qxf7+ {[%emt 0:06:16]} Kh8 {[%emt 0:00:02][%cal Od6d1] ( -> ...Qd1+!)} 31. Qh5 {[%emt 0:00:27] Prevents Qd1+.} Qd4 {[%emt 0:00:51]} 32. Re1 {[%emt 0:01:17]} Rf8 {[%emt 0:00:11]} 33. Qxe5 {[%emt 0:04:12]} (33. Rxe5 $2 {gets mated.} Qxf2+ 34. Kh1 Qf1+ 35. Bxf1 Rxf1#) 33... Qxf2+ {[%emt 0:00:21]} (33... Qxe5 $142 34. Rxe5 Nxa2) 34. Kh1 {[%emt 0:00:05]} Nxa2 {[%emt 0:00:49]} 35. Qa5 {[%emt 0:03:09] Against Nb4} Qb2 {[%emt 0:00:44]} 36. Qc5 {[%emt 0:11:31][%cal Rc5f8]} Qf6 {[%emt 0:00:23]} 37. h3 {[%emt 0:00:14] Rf1 is the strong threat. Black is weak on the light squares} Qd8 {[%emt 0:00:22]} 38. Re7 {[%emt 0:02:19]} Qb8 {[%emt 0:00:48]} (38... Re8 $18) 39. Qg5 {[%emt 0:01:06] White took control after the opening.   Weighted Error Value: White=0.10 (very precise) /Black=0.52} 1-0

[Event "4NCL 2022-2023"]
[Site "Daventry"]
[Date "2023.02.11"]
[Round "5.20"]
[White "Macfarlane, Donald"]
[Black "Dong, Bao Nghia"]
[Result "1-0"]
[ECO "A13"]
[WhiteElo "2145"]
[BlackElo "2361"]
[Annotator "TA"]
[PlyCount "111"]
[EventDate "2022.10.20"]
[EventType "team-tourn"]
[EventCountry "ENG"]
[SourceTitle "playchess.com"]
[Source "ChessBase"]
[SourceQuality "1"]
[TimeControl "40/6000+30:2400+30"]

{[%evp 9,111,23,41,39,67,69,105,110,121,109,131,130,136,93,101,-22,-18,-20,9,0,8,0,1,-100,47,29,30,25,103,71,85,82,102,84,83,95,243,152,239,35,36,36,35,38,43,12,16,17,20,9,81,63,346,74,71,74,96,49,255,234,223,0,213,220,187,43,29,37,617,622,1205,1154,12833,12833,12834,12834,12833,12835,12835,12836,12831,11461,12834,12826,5010,1606,1420,3441,1983,1894,12846,12836,12838,12839,12841,12842,12842,12839,12845,12845,12845,12846,12846,12847]} 1. c4 {[%emt 0:00:06]} e6 {[%emt 0:06:34]} 2. Nc3 {[%emt 0:05:51]} d5 {[%emt 0:00:19]} 3. cxd5 {[%emt 0:00:37]} exd5 {[%emt 0:00:06]} 4. d4 {[%emt 0:00:04]} g6 {[%emt 0:00:14]} 5. Nf3 {[%emt 0:04:12]} Bg7 {[%emt 0:00:27]} 6. Bg5 {[%emt 0:09:40] A13: English Opening: 1...e6.} f6 {[%emt 0:00:08]} 7. Bf4 {[%emt 0:02:22]} Ne7 {[%emt 0:00:31] [#]} 8. Nb5 $146 {[%emt 0:12:22] White is better.} ({Predecessor:} 8. e3 O-O 9. Be2 Bf5 10. Qb3 b6 11. O-O c6 12. Rac1 Nd7 13. Ba6 b5 14. Bb7 {1-0 Batsiashvili,N-Mzhavia,N GEO-ch U16 Girls 2002 (1)}) 8... Na6 {[%emt 0:00:27]} 9. Rc1 {[%emt 0:00:52][%cal Rf4c7]} c6 {[%emt 0:00:07]} 10. Nd6+ {[%emt 0:01:25]} Kf8 {[%emt 0:00:06]} 11. h4 {[%emt 0:11:41] White is much more active. The black rooks are badly placed.} h5 {[%emt 0:00:44]} 12. e4 {[%emt 0:02:15]} (12. e3 $16) 12... dxe4 $1 $11 {[%emt 0:00:59]} 13. Nxe4 {[%emt 0:04:32]} Bf5 {[%emt 0:02:30]} (13... Nd5 $5 {[%cal Rd5f4]} 14. Bd2 (14. Bd6+ Kg8 $17) 14... Nab4 $15) 14. Nd6 {[%emt 0:07:52]} Nd5 {[%emt 0:02:00]} 15. Nxf5 $1 {[%emt 0:12:05]} Nxf4 {[%emt 0:00:19]} 16. Bxa6 {[%emt 0:01:57]} (16. Ne3 $11) 16... gxf5 {[%emt 0:01:17]} (16... Qa5+ $1 $17 17. Rc3 (17. Qd2 Re8+ 18. Kd1 Qxa6 $17) 17... Qxa6) 17. Bd3 {[%emt 0:10:27]} Qa5+ {[%emt 0:09:16]} 18. Kf1 {[%emt 0:00:33]} Qxa2 {[%emt 0:00:18]} (18... Nxd3 $1 $11 {remains equal.} 19. Qxd3 Qxa2) 19. g3 {[%emt 0:03:27]} (19. Bc4 {looks sharper.} Qa5 20. Qb3 Rb8 21. g3) 19... Nxd3 {[%emt 0:00:30]} 20. Qxd3 {[%emt 0:00:02]} f4 {[%emt 0:00:10]} (20... Qxb2 $2 21. Rb1 Qa2 22. Rxb7 $18) 21. gxf4 {[%emt 0:03:34]} Re8 {[%emt 0:00:59]} (21... Qxb2 $2 22. Rb1 Qa2 23. Rxb7 $18) 22. Rg1 {[%emt 0:02:10]} Bh6 {[%emt 0:00:31]} (22... Qxb2 $2 23. Rb1 $18) (22... Rg8 $16) 23. Rg6 $1 $18 {[%emt 0:00:27]} Bg7 {[%emt 0:18:39] [#]} (23... Qf7 $16 {is a better defense.}) 24. d5 $2 {[%emt 0:06:21]} Qxd5 $14 {[%emt 0:09:05]} (24... Qxb2 $2 25. Rb1 $18) 25. Qxd5 {[%emt 0:00:15]} cxd5 {[%emt 0:00:04]} 26. Rc7 {[%emt 0:00:20][%csl LRb7,LRg7]} Rg8 {[%emt 0:00:07]} 27. Rxb7 {[%emt 0:03:23][%cal Of4f5]} Re7 {[%emt 0:00:49]} 28. Rb5 $36 {[%emt 0:00:26][%mdl 2048] White has good play.} Kf7 {[%emt 0:03:42]} 29. f5 {[%emt 0:00:18][%cal Of3d4]} Rd7 {[%emt 0:00:06]} (29... Bf8 $11 {keeps the balance.}) 30. Nd4 $16 {[%emt 0:01:22] Threatens to win with Ne6.} Bf8 $2 {[%emt 0:05:18][%mdl 8192]} (30... Re8 $14) 31. Rxg8 $2 {[%emt 0:00:11]} (31. Rb8 $18 {is the precise move to win.}) 31... Kxg8 $18 {[%emt 0:00:02][%mdl 4096] Endgame KRB-KRN} 32. Ne6 {[%emt 0:00:23]} Kf7 {[%emt 0:00:29]} 33. Rb8 {[%emt 0:02:07]} (33. Ke2 $16) 33... Bh6 $2 {[%emt 0:05:00]} (33... Be7 $14) 34. Rh8 {[%emt 0:00:35]} Bg7 {[%emt 0:01:30]} 35. Rb8 {[%emt 0:00:19]} ({Worse is} 35. Rxh5 Kg8 $11) ({Better is} 35. Rc8 $18) 35... d4 $2 {[%emt 0:02:19]} (35... Bh6 $1 $11 {and Black has nothing to worry.}) 36. Ke2 {[%emt 0:00:55]} d3+ {[%emt 0:02:08] [#]} 37. Kd2 {[%emt 0:00:10]} (37. Kd1 $1 $18) 37... Bh6+ $1 $14 {[%emt 0:00:05]} 38. f4 {[%emt 0:00:17] And now Rh8 would win.} Bg7 {[%emt 0:07:25][%mdl 8192] Against Rh8. White now steadily converts the win.} (38... Rd5 $14) 39. b4 $18 {[%emt 0:01:38] White is clearly winning.} Bh6 {[%emt 0:03:20]} 40. Rh8 {[%emt 0:01:29]} Rd5 {[%emt 0:14:25]} 41. Rh7+ {[%emt 0:00:00][%mdl 64] Skewer} Kg8 {[%emt 0:00:00]} 42. Rxh6 {[%emt 0:05:26]} Rxf5 {[%emt 0:00:00]} 43. Kxd3 {[%emt 0:00:11] KRN-KR} Kf7 {[%emt 0:00:00]} 44. Nd4 {[%emt 0:00:13]} Rxf4 {[%emt 0:00:00]} 45. Rxh5 {[%emt 0:00:17]} Kg6 {[%emt 0:00:00]} 46. Rh8 {[%emt 0:01:02]} Rf1 {[%emt 0:00:00]} 47. b5 {[%emt 0:03:10] Strongly threatening Ra8.} Rd1+ {[%emt 0:00:00]} 48. Kc4 {[%emt 0:01:09]} Rc1+ {[%emt 0:00:00]} 49. Kd5 {[%emt 0:00:07] Hoping for Ra8.} Rc7 {[%emt 0:00:00]} 50. Nc6 {[%emt 0:02:00]} Rb7 {[%emt 0:00:00]} 51. Kc5 {[%emt 0:00:17]} f5 {[%emt 0:00:00]} 52. Rf8 {[%emt 0:00:54]} Rc7 {[%emt 0:00:00]} 53. Re8 {[%emt 0:01:54]} Kf6 {[%emt 0:00:00]} 54. Kd6 {[%emt 0:02:17]} Rb7 {[%emt 0:00:00]} 55. Re6+ {[%emt 0:00:04]} Kg7 {[%emt 0:00:00]} 56. Re7+ {[%emt 0:01:13] Weighted Error Value: White=0.52/Black=0.75} 1-0

[Event "4NCL 2022-2023"]
[Site "Daventry"]
[Date "2023.02.11"]
[Round "5.21"]
[White "Roberson, Peter T"]
[Black "Kett, Tim"]
[Result "1-0"]
[ECO "C77"]
[WhiteElo "2426"]
[BlackElo "2130"]
[Annotator "TA"]
[PlyCount "80"]
[EventDate "2022.10.20"]
[EventType "team-tourn"]
[EventCountry "ENG"]
[SourceTitle "playchess.com"]
[Source "ChessBase"]
[SourceQuality "1"]
[TimeControl "40/6000+30:2400+30"]

{[%evp 14,80,29,28,22,25,25,23,26,0,4,0,33,3,53,39,36,36,38,45,29,35,51,18,45,45,43,0,24,34,203,167,214,178,221,204,215,188,212,0,0,0,0,0,678,677,639,220,230,244,237,225,291,249,364,164,168,131,272,202,202,202,235,218,261,259,259,245,239]} 1. e4 {[%emt 0:00:05]} e5 {[%emt 0:00:36]} 2. Nf3 {[%emt 0:00:07]} Nc6 {[%emt 0:00:22]} 3. Bb5 {[%emt 0:00:10]} a6 {[%emt 0:00:27]} 4. Ba4 {[%emt 0:00:05]} Nf6 {[%emt 0:00:07]} 5. d3 {[%emt 0:00:21]} d6 {[%emt 0:00:32]} 6. c3 {[%emt 0:00:55]} g6 {[%emt 0:04:07]} 7. O-O {[%emt 0:01:35]} Bg7 {[%emt 0:00:52]} 8. Re1 {[%emt 0:01:15]} Bd7 {[%emt 0:08:25] C77: Ruy Lopez: 3...a6 4 Ba4 Nf6, unusual lines.} 9. h3 {[%emt 0:19:33]} O-O {[%emt 0:01:43]} 10. Bc2 {[%emt 0:00:04] [#]} Nh5 $146 {[%emt 0:07:46] White has an edge.} ({Predecessor:} 10... h6 11. d4 Nh5 12. Be3 Qe7 13. Nbd2 Nd8 14. Bd3 Ne6 15. Bf1 Rad8 16. a4 Be8 {½-½ Harika,D (2511)-Batsiashvili,N (2484) FIDE Grand Swiss (Women) 2021 (6)}) 11. b4 {[%emt 0:03:16]} Qe7 {[%emt 0:02:49]} 12. Nbd2 {[%emt 0:13:16][%cal Bb1d2,Bd2c4,Bc4e3,Be3d5][%mdl 32]} Kh8 {[%emt 0:03:12]} 13. a4 {[%emt 0:06:01]} Rae8 {[%emt 0:00:34]} ({Black should try} 13... f5 $11) 14. Nc4 {[%emt 0:10:17]} b5 {[%emt 0:27:25]} 15. Ne3 {[%emt 0:02:14]} f5 {[%emt 0:02:34]} 16. axb5 {[%emt 0:04:31]} axb5 {[%emt 0:01:25]} 17. Nd5 $36 {[%emt 0:07:36][%csl LRc7,LRe7][%mdl 2048] White has good play.} Qd8 {[%emt 0:01:13]} 18. Bg5 {[%emt 0:00:25]} Qc8 {[%emt 0:00:10]} 19. exf5 {[%emt 0:04:17]} Bxf5 {[%emt 0:01:31]} 20. Nd2 {[%emt 0:02:34]} (20. Bb3 {simplifies} Qd7 21. Ra6 Be6 22. Be3) 20... Bxh3 {[%emt 0:07:13][%mdl 64] Demolition} 21. gxh3 {[%emt 0:06:24] aiming for Qg4.} Qxh3 {[%emt 0:06:12] [#]} (21... Qf5 22. Ne4 Nf4 23. Ne3 (23. Nxc7 $2 Nxh3+ 24. Kh1 Nxg5 $17) (23. Bxf4 exf4 24. d4 f3 $15) 23... Qxh3 24. Bb3 $16) (21... h6 $14) 22. Re3 $1 $18 {[%emt 0:15:05]} (22. Nxc7 $2 Rxf2 23. Kxf2 Qg3+ 24. Kf1 (24. Ke2 Nf4+ 25. Bxf4 Qg2+ 26. Ke3 exf4+ {[%mdl 64] Discovered Attack (Double check)} 27. Kxf4 Bh6#) 24... Rf8+ $19) 22... Qf5 {[%emt 0:10:02]} (22... Qd7 $142 23. Ne4 h6) 23. Ne4 {[%emt 0:00:16]} Nf4 {[%emt 0:01:32]} 24. Nxc7 {[%emt 0:01:57]} d5 {[%emt 0:01:17] And now ...Rc8 would win.} 25. Nxe8 {[%emt 0:05:17]} dxe4 {[%emt 0:04:07]} 26. Bxf4 {[%emt 0:02:10]} (26. dxe4 $2 Qxg5+ 27. Rg3 Nh3+ 28. Kh1 (28. Kh2 Rxf2+ 29. Kh1 Qxg3) 28... Nxf2+ 29. Kg2 Qxg3+ 30. Kxg3 Nxd1 31. Nxg7 Nxc3 $19) (26. Bh4 $18 Nh3+ {[%mdl 64] Discovered Attack} 27. Kg2 (27. Kh2 Nxf2 28. Qe2 Qf4+ 29. Kg2 Qxh4 $17) 27... Nf4+ 28. Kh2 Rxe8 29. dxe4 (29. Rxe4 $2 Qh3+ 30. Kg1 Qg2#)) 26... exf4 $11 {[%emt 0:02:27]} 27. Rxe4 {[%emt 0:00:37]} Bxc3 {[%emt 0:06:10] [#] White must now prevent ...Qg5+.} 28. Ra3 {[%emt 0:00:53]} Bxb4 {[%emt 0:03:48][%mdl 8192]} (28... Bb2 $11 29. Ra2 (29. Ra6 $2 Qg5+ 30. Kh1 Qh6+ 31. Kg2 f3+ $19) 29... Bc3) 29. Qa1+ $18 {[%emt 0:01:38]} Ne5 {[%emt 0:00:50]} 30. Qxe5+ $2 {[%emt 0:01:46]} ({Worse is} 30. Rxe5 Qg4+ 31. Kh2 Qh4+ 32. Kg1 Qg4+ 33. Kh2 Qh4+ 34. Kg1 Qg4+ $11) (30. Rxb4 Qg4+ 31. Kf1 Rxe8 32. Re4 Qh3+ 33. Ke2 Qf3+ 34. Ke1 Qh1+ 35. Kd2 Qxa1 36. Rxa1) 30... Qxe5 {[%emt 0:00:05]} 31. Rxe5 {[%emt 0:00:02] White wants to mate with Ra7.} Bxa3 {[%emt 0:00:08]} 32. Re6 {[%emt 0:01:07] Threatens to win with d4.} Rf5 {[%emt 0:01:38]} 33. Ra6 {[%emt 0:00:30]} Bc5 {[%emt 0:01:43]} (33... Rg5+ {might work better.} 34. Kf1 Rc5 35. Rxa3 Rc8) 34. Kf1 {[%emt 0:00:10]} (34. d4 $142 Rf8 35. Nc7) 34... f3 {[%emt 0:00:27]} 35. Ra8 {[%emt 0:00:34]} ({Not} 35. d4 Rh5 36. Kg1 (36. dxc5 $2 Rh1#) 36... Rg5+ 37. Kh2 Bxd4 $11) 35... Re5 {[%emt 0:00:11]} (35... Rf8 $16 {was necessary.} 36. Nc7 Rxa8 37. Nxa8 g5) 36. Nf6+ {[%emt 0:00:52]} Kg7 {[%emt 0:00:03] ...Re2 is the strong threat.} 37. Ne4 {[%emt 0:00:14]} Rh5 {[%emt 0:02:25][%cal Rh5h1]} 38. Kg1 {[%emt 0:00:01] Inhibits Rh1+.} Bd4 {[%emt 0:01:13]} 39. Bd1 {[%emt 0:00:56]} Rf5 {[%emt 0:01:54]} 40. Rd8 {[%emt 0:00:17]} Bb6 {[%emt 0:00:00] Weighted Error Value: White=0.55/Black=0.51} 1-0

[Event "4NCL 2022-2023"]
[Site "Daventry"]
[Date "2023.02.11"]
[Round "5.22"]
[White "Southcott-Moyers, Indy"]
[Black "Rendle, Thomas E"]
[Result "0-1"]
[ECO "A90"]
[WhiteElo "2077"]
[BlackElo "2380"]
[Annotator "TA"]
[PlyCount "78"]
[EventDate "2022.10.20"]
[EventType "team-tourn"]
[EventCountry "ENG"]
[SourceTitle "playchess.com"]
[Source "ChessBase"]
[SourceQuality "1"]
[TimeControl "40/6000+30:2400+30"]

{[%evp 15,78,18,27,4,4,4,12,6,18,10,51,0,0,0,0,0,-7,-51,-19,-26,-21,-74,-46,-34,-29,-69,-73,-63,-37,-46,-36,-34,-27,-31,0,-10,-15,-18,22,-123,-114,-120,-109,-171,-187,-225,-218,-395,-388,-671,-657,-647,-631,-646,-646,-785,-678,-1077,-1024,-1031,-1033,-961,-938,-1026,-984]} 1. d4 {[%emt 0:00:04]} e6 {[%emt 0:00:06]} 2. c4 {[%emt 0:00:05]} f5 {[%emt 0:01:27]} 3. Nf3 {[%emt 0:02:02]} Nf6 {[%emt 0:00:33]} 4. g3 {[%emt 0:00:58]} d5 {[%emt 0:00:47]} 5. Bg2 {[%emt 0:01:48]} c6 {[%emt 0:00:16]} 6. O-O {[%emt 0:01:31]} Bd6 {[%emt 0:00:57]} 7. Nc3 {[%emt 0:03:36]} O-O {[%emt 0:01:30]} 8. Qc2 {[%emt 0:02:03]} Qe7 {[%emt 0:01:30]} 9. c5 {[%emt 0:10:49] A90: Dutch Defence: Miscellaneous and Modern Stonewall (with ...Bd6).} Bc7 {[%emt 0:00:27]} 10. Bf4 {[%emt 0:00:20]} Bxf4 {[%emt 0:06:51]} 11. gxf4 {[%emt 0:00:13] The position is equal.} Nbd7 {[%emt 0:00:04] [#]} 12. e3 $146 {[%emt 0:06:37]} ({Predecessor:} 12. b4 Ne4 13. a4 b6 14. Ne5 Nxe5 15. fxe5 bxc5 16. bxc5 Nxc3 17. Qxc3 Ba6 18. Rfe1 Rab8 19. e3 Rb7 20. Rab1 Rfb8 21. Qc2 Bc4 {½-½ Smirnov,P (2568)-Kostenko,P (2421) Cheliabinsk Kurnosov Memorial rapid 2017 (6)}) 12... Ne4 {[%emt 0:04:32]} 13. Ne5 {[%emt 0:14:47]} ({White should try} 13. Rfc1 $14) 13... Nxe5 $11 {[%emt 0:06:39]} 14. fxe5 {[%emt 0:00:17]} Nxc3 {[%emt 0:01:48]} 15. Qxc3 {[%emt 0:09:42]} f4 {[%emt 0:02:07] [#] White must now prevent ...f3.} 16. f3 {[%emt 0:02:35]} Qh4 {[%emt 0:08:01]} 17. Qe1 {[%emt 0:10:06]} Qg5 {[%emt 0:03:32]} (17... Qxe1 {simplifies} 18. Rfxe1 fxe3 19. Rxe3 Rf4) 18. exf4 {[%emt 0:05:13]} (18. e4 $11 {remains equal.}) 18... Qxf4 {[%emt 0:08:09]} 19. Rd1 {[%emt 0:02:11]} b6 {[%emt 0:06:28] Against Qa5} 20. b4 {[%emt 0:06:53]} bxc5 {[%emt 0:09:32] Black is more active.} (20... Ba6 {with more complications.} 21. Rf2 Bc4 22. Bh3 Rae8) 21. bxc5 {[%emt 0:00:08]} Rb8 {[%emt 0:00:54]} (21... Ba6 $5 {[%cal Ra6f1]} 22. Rf2 Qh6 $15) 22. Qd2 {[%emt 0:01:43]} Qxd2 {[%emt 0:03:59]} (22... Ba6 {is interesting.} 23. Rf2 h5 24. Bh3 Rbe8) 23. Rxd2 {[%emt 0:00:02]} Rf4 {[%emt 0:00:11]} 24. Kf2 {[%emt 0:06:04]} g5 {[%emt 0:04:57]} 25. Rc1 {[%emt 0:04:18]} Rb4 {[%emt 0:05:47]} 26. Ke3 {[%emt 0:01:01]} Ba6 {[%emt 0:07:05]} 27. Bf1 {[%emt 0:04:30]} (27. Bh3 $11) 27... Bxf1 $17 {[%emt 0:01:54]} 28. Rxf1 {[%emt 0:00:40][%mdl 4096] Endgame KRR-KRR} Kg7 {[%emt 0:04:08]} 29. Rc1 {[%emt 0:04:37] [#]} (29. Rfd1 $17) 29... a5 $1 $19 {[%emt 0:02:43]} 30. Rcc2 {[%emt 0:03:20]} Kg6 {[%emt 0:01:24]} 31. Rb2 $2 {[%emt 0:00:56]} (31. Rd3 {was necessary.}) 31... Rfxd4 $1 {[%emt 0:01:33][%mdl 64] Deflection} 32. a3 $2 {[%emt 0:04:57]} (32. Rxd4 Rxb2 33. h4) 32... Rxd2 {[%emt 0:01:45] Black is clearly winning.} 33. Rxd2 {[%emt 0:00:02] KR-KR} Rb3+ {[%emt 0:00:28]} 34. Ke2 {[%emt 0:00:04]} Kf5 {[%emt 0:00:30]} 35. Rd4 {[%emt 0:00:49]} Rxa3 {[%emt 0:00:26]} 36. h4 {[%emt 0:00:06]} h5 {[%emt 0:02:53]} 37. hxg5 {[%emt 0:01:03]} Kxg5 {[%emt 0:00:13]} 38. Rd1 {[%emt 0:00:52]} Kf4 {[%emt 0:00:45]} 39. Rh1 {[%emt 0:00:23]} Re3+ {[%emt 0:01:17] Weighted Error Value: White=0.70/Black=0.08 (flawless)} 0-1